Cogmind - Beta 14 @@@ ROGUE MODE // 2025.03.17 @ 16:41:17 // Winter2019/RPGLIKE Player: Bulbasornado Result: Destroyed by D-53 Grenadier with Mini Grenade Launcher Performance ------------- Evolutions (0) 0 Regions Visited (0) 0 Robots Destroyed (3) 15 Value Destroyed (20) 20 Prototype IDs (0) 0 Alien Tech Used (0) 0 Bonus (0) 0 TOTAL SCORE: 35 Bonus ------- None Cogmind --------- Core Integrity 0/600 Matter 298/300 Energy 124/125 System Corruption 0% Temperature Cool (40) Movement Treading (160) Location -11/Scrapyard Parts ------- > --- POWER (1) -------- Light Ion Engine > --- PROPULSION (2) --- Light Treads Light Treads > --- UTILITY (2) ------ Improved Terrain Scanner Tractor Beam > --- WEAPON (2) ------- Light Assault Rifle > --- INVENTORY (0) ---- (None) Peak State ------------ > --- POWER ------------ Light Ion Engine > --- PROPULSION ------- Light Treads Light Treads > --- UTILITY ---------- Improved Terrain Scanner Tractor Beam > --- WEAPON ----------- EM Pulse Gun Light Assault Rifle > --- INVENTORY -------- (None) [Rating: 9] Favorites ----------- Power Light Ion Engine Engine Light Ion Engine Propulsion Light Treads Treads Light Treads Utility Tractor Beam Device Tractor Beam Weapon Light Assault Rifle Energy Gun EM Pulse Gun Ballistic Gun Light Assault Rifle Build | -11 ------- Run | Yrd Slots Evolved 3 | 3 Power . | . Propulsion 1 | 1 Utility 1 | 1 Weapon 1 | 1 Parts Attached 8 | 8 Power 1 | 1 Engine 1 | 1 Core . | . Reactor . | . Propulsion 2 | 2 Treads 2 | 2 Leg . | . Wheel . | . Hover . | . Flight . | . Utility 3 | 3 Device 3 | 3 Storage . | . Processor . | . Hackware . | . Protection . | . Artifact . | . Weapon 2 | 2 Energy Gun 1 | 1 Energy Cannon . | . Ballistic Gun 1 | 1 Ballistic Cannon . | . Launcher . | . Special Weapon . | . Impact Weapon . | . Slashing Weapon . | . Piercing Weapon . | . Special Melee Weapon . | . Unidentified Prototypes . | . Parts Lost 1 | 1 Power . | . Propulsion . | . Utility . | . Weapon 1 | 1 Highest Loss Streak 1 | 1 To Critical Strikes . | . Average Slot Usage (%) . | . Peak Build Rating 9 | 9 Average Rating 8 | 8 On Entrance . | . Naked Turns . | . Heaviest Build 8 | 8 Greatest Support 40 | 40 Greatest Overweight (x) . | . Average Overweight (x) . | . Largest Inventory Capacity . | . Average Capacity . | . Most Carried . | . Average Carried . | . Final Capacity . | . Final Carried . | . Class Distribution -------------------- None Dominant Class ---------------- None Resources | -11 ----------- Run | Yrd Matter Collected 289 | 289 Remotely 31 | 31 Salvage Created 134 | 134 Parts 11 | 11 Haulers Intercepted . | . Recyclers Shooed 1 | 1 Parts Field Recycled . | . Retrieved Matter . | . Parts Self-Destructed . | . Prevented . | . Kills | -11 ------- Run | Yrd Combat Hostiles Destroyed . | . Classes Destroyed 2 | 2 Tunneler 2 | 2 Recycler 1 | 1 Best Kill Streak 2 | 2 Combat Bots Only . | . Max Kills in Single Turn 1 | 1 Gunslinging . | . Exploded . | . Melee . | . Uniques/NPCs Destroyed . | . Combat | -11 -------- Run | Yrd Hostile Shots Fired 20 | 20 Missed 2 | 2 Damage Taken 749 | 749 Core 604 | 604 Absorbed by Shields . | . Redirected to Core 479 | 479 Core Remaining (%) . | . Volleys Fired 16 | 16 Largest 2 | 2 Hottest 60 | 60 Shots Fired 29 | 29 Gun 29 | 29 Cannon . | . Launcher . | . Special . | . Kinetic 16 | 16 Thermal . | . Explosive . | . Electromagnetic 13 | 13 Robot Hit Streak 7 | 7 Robot Miss Streak 3 | 3 Penetration Max . | . Secondary Targets . | . Shots Hit Robots 18 | 18 Core Hits 8 | 8 Critical Kills . | . Critical Parts Destroyed . | . Critical Strikes . | . Melee Attacks . | . Impact . | . Slashing . | . Piercing . | . Sneak Attacks . | . Combat Hostiles . | . Follow-up Attacks . | . Damage Inflicted 208 | 208 Guns 208 | 208 Cannons . | . Explosions . | . Melee . | . Ramming . | . Kinetic 82 | 82 Thermal . | . Explosive . | . Electromagnetic 126 | 126 Impact . | . Slashing . | . Piercing . | . Highest Corruption . | . Average Corruption . | . Corruption Purged . | . Corruption Blocked . | . Overload Shots . | . Overflow Damage . | . Projectiles . | . Explosions . | . Melee . | . Knockbacks . | . Impact . | . Kinetic . | . Secondary . | . Self-Inflicted Damage . | . Shots . | . Rammed . | . Targets Rammed . | . Kicked . | . Crushed . | . Highest Temperature 40 | 40 Average Temperature 20 | 20 Received Heat Transfer . | . Siege Activations . | . Robots Corrupted . | . Combat Hostiles . | . Parts Fried . | . Impact Corruptions . | . Robots Melted . | . Combat Hostiles . | . Parts Melted . | . Heat Transferred . | . Parts Sabotaged . | . Parts Stolen . | . Parts Stripped . | . Power Chain Reactions . | . Alert | -11 ------- Run | Yrd Peak Influence 15 | 15 Initial . | . Average 1 | 1 Maximum Alert Level . | . Low Security (%) 100 | 100 Level 1 . | . Level 2 . | . Level 3 . | . Level 4 . | . Level 5 . | . High Security . | . Max Security . | . Squads Dispatched . | . Investigation . | . Extermination . | . Reinforcement . | . Assault . | . Garrison . | . Intercept . | . Searches Triggered . | . Construction Impeded . | . Haulers Reinforced . | . Active Scanning Responses . | . Cargo Convoy Interrupts . | . Stealth | -11 --------- Run | Yrd Distress Signals . | . Communications Jammed . | . Distress Signals . | . Times Spotted 2 | 2 Peak Tracking Total 2 | 2 Tactical Retreats . | . Traps | -11 ------- Run | Yrd Traps Triggered . | . Indirectly . | . Trap Hack Attempts . | . Triggered . | . Disarmed . | . Reprogrammed . | . Reused . | . Traps Extracted . | . Installed . | . Triggered . | . Machines | -11 ---------- Run | Yrd Machines Disabled . | . Max in Single Turn . | . Machines Repaired . | . Machines Dismantled . | . Machines Sabotaged . | . Overloaded Fab Kills . | . Hacking | -11 --------- Run | Yrd Machines Accessed . | . Terminals . | . Fabricators . | . Repair Stations . | . Recycling Units . | . Scanalyzers . | . Garrison Access . | . Total Hacks . | . Successful . | . Failed . | . Catastrophic . | . Database Lockouts . | . Manual . | . Terminals . | . Fabricators . | . Repair Stations . | . Recycling Units . | . Scanalyzers . | . Garrison Access . | . Terminal Hacks . | . Fabricator Hacks . | . Repair Station Hacks . | . Recycling Unit Hacks . | . Scanalyzer . | . Garrison Access Hacks . | . Unauthorized Hacks . | . Terminals . | . Fabricators . | . Repair Stations . | . Recycling Units . | . Scanalyzers . | . Garrison Access . | . Data Cores Recovered . | . Used . | . Hacking Detections . | . Full Trace Events . | . Feedback Events . | . Feedback Blocked . | . Robot Schematics Acquired . | . Robots Built . | . Authchips . | . Time . | . Total Robot Build Rating . | . Part Schematics Acquired . | . Parts Built . | . Authchips . | . Time . | . Total Part Build Rating . | . Parts Repaired . | . Time . | . Parts Recycled . | . Recycled Matter . | . Retrieved Matter . | . Retrieved Components . | . Parts Scanalyzed . | . Part Schematics Acquired . | . Parts Damaged . | . Bothacking | -11 ------------ Run | Yrd Used RIF Installer . | . Robots Hacked . | . Non-combat . | . Combat . | . Robot Hacks Applied . | . Relay Couplers Released . | . Fabnet Peak Effective % . | . Robots Rewired . | . Allies Hacked . | . Hacks Repelled . | . Allies | -11 -------- Run | Yrd Total Allies . | . Largest Group . | . Highest-Rated Group . | . Highest-Rated Ally . | . Total Orders . | . Ally Attacks . | . Total Damage . | . Kills . | . Allies Corrupted . | . Allies Melted . | . Intel | -11 ------- Run | Yrd Robot Analysis Total . | . Derelict Logs Recovered . | . Drone Launches . | . Drone Recoveries . | . Exploration | -11 ------------- Run | Yrd Turns Passed 2679 | 2679 Spaces Moved 65 | 65 Core 6 | 6 Treads 59 | 59 Legs . | . Wheels . | . Hover . | . Flight . | . Fastest Speed 50 | 50 Average Speed 149 | 149 Slowest Speed 160 | 160 Overloaded Moves . | . Propulsion Burnouts . | . Robots Hopped . | . Cave-ins Triggered . | . Exploration Rate (%) 10 | 10 Regions Visited . Branch Regions . Pre-discovered Areas . | . Known Exits Taken . | . Unknown Exits Taken . | . Scrap Searched . | . Spaces Dug . | . Terrain Destroyed . | . Melee . | . Projectile . | . AOE . | . Terrain Rammed . | . Walls Destroyed . | . Machines Disabled . | . Actions | -11 --------- Run | Yrd Total 2618 | 2618 Wait 2528 | 2528 Move 65 | 65 Hop . | . Pick Up . | . Fast Attach 7 | 7 Attach . | . Detach . | . Swap 1 | 1 Drop 1 | 1 Fire 16 | 16 Melee . | . Ram . | . Kick . | . Crush . | . Escape Stasis . | . Rewire . | . Trap . | . Miscellaneous . | . Route ------- -11/Scrapyard (discovered 1 exit: [*Mat]) History --------- Turn | Location | Event 1 | -11/Scrapyard | Upgraded with Propulsion slot (x1) 1 | -11/Scrapyard | Upgraded with Weapon slot (x1) 9 | -11/Scrapyard | Discovered new exit (range 15) 76 | -11/Scrapyard | Upgraded with Utility slot (x1) 2659 | -11/Scrapyard | Assembled infested the area 2671 | -11/Scrapyard | Core integrity fell below 50% 2677 | -11/Scrapyard | Core integrity fell below 20% 2680 | -11/Scrapyard | Destroyed by D-53 Grenadier with Mini Grenade Launcher Last Messages --------------- 00300_ K-01 Serf collects debris. 00301_ T-07 Excavator is excavating. 00303_ K-01 Serf collects debris. 00306_ T-07 Excavator is excavating. 00307_ K-01 Serf collects debris. 00310_ T-07 Excavator is excavating. 00311_ K-01 Serf collects debris. 00314_ T-07 Excavator is excavating. 00315_ K-01 Serf collects debris. 00319_ T-07 Excavator is excavating. 00322_ K-01 Serf collects debris. 00323_ T-07 Excavator is excavating. 00642_ K-01 Serf collects debris. 02659_ ALERT: Infestation in the scrapyard, dispatching Demolisher response squad. 02660_ C-30 ARC bursts open, deploying its payload. 02660_ D-53 Grenadier unfolds itself. 02662_ T-07 Excavator destroyed. 02667_ The unstable cave ceiling collapses. 02678_ EM Pulse Gun destroyed. 02679_ The unstable cave ceiling collapses. Map ----- +----------------------------------------------------+ | ?????????????????????????????????????????????????? | | ?????????????????????????????????????????????????? | | ?????????????????????????????????????????????????? | | ?????????????????????????????????????????????????? | | ?????????????????????????????????????????????????? | | ?????????????????????????????????????????????????? | | ????????#????????????????????????????????????????? | | ?????????????????????????????????????????????????? | | ?????????????????????????????????????????????????? | | ????????????#??#???##???? ???????????????????????? | | ????????????????#??#?## # # ???????????????????? | | ?????????????????? #? # ????????????????? | | ???????????????? #? # ## # ??????????????? | | ?????????#????###### ## ###?# ## ?????????????? | | ????????????#? # ? ###? ????????????? | | ???????????## ########?#?######???????????? | | ??#????????#! ##### ###############?#?#??????????? | | ?????????#?#%=#### # ?##??????????? | | ???????????#!=#### # ?##?????????? | | ???????????# #### # ##?????????? | | ????????#### #### # ? ##?????????? | | ######??# # # ###????????? | | = #???# # # # # ????????? | | ##?## ### #### ## # ????????? | | [ ##### d # ????????? | | ==%= %d @ ???????? | | * %=% ### # ###### # ????????? | | = ##### < # ####?# # ????????? | | #?### # #####?? # ????????? | | #?#?########## ####### ? ????????? | | #####??#??######## ##?#### ###????????? | | ??????????######## #####?### ##?????????? | | ????????#??###?### ######### # ?????????? | | ????????????####?# ## # ?# #??????????? | | ????????????###### ## #? #??????????? | | ?????????????################? ? # ???????????? | | ??????????#???############### #????????????? | | ?????????????################?#?? #?????????????? | | ????????????????############## ? #??????????????? | | ??????????????????##########?####????????????????? | | ????????????????????###########??????????????????? | | ?????????????????????????#???????????????????????? | | ?????????????????????????????????????????????????? | | ?????????????????????????????????????????????????? | | ?????????????????????????????????????????????????? | | ?????????????????????????????????????????????????? | | ?????????????????????????????????????????????????? | | ?????????????????????????????????????????????????? | | ?????????????????????????????????????????????????? | | ?????????????????????????????????????????????????? | +----------------------------------------------------+ Best States ------------- Heat Dissipation 25 Energy Generation 10 Energy Capacity 125 Matter Stores 300 Matter Capacity 300 Sight Range 16 Terrain Scan Range 16 Terrain Scan Density 10 Evasion (%) 40 Recoil Reduction 2 Item Schematics ----------------- None Robot Schematics ------------------ None Fabricated ------------ Nothing Alien Tech Used ----------------- None Achievements -------------- None Challenges ------------ None RPGLIKE | -11 --------- Run | Yrd Levels Raised . | . XP Earned 3000 | 3000 XP Spent 1500 | 1500 Upgrades 3 | 3 Propulsion Slot 1 | 1 Utility Slot 1 | 1 Weapon Slot 1 | 1 Protomatter Created . | . Protomatter Decayed . | . Game ------ Seed TractorImprovedArticulator Manual? 0 Play Time 00:09:06 Cumulative 311.0 hours Start 2025.03.17 @ 16:36:16 End 2025.03.17 @ 16:41:17 Sessions 0 Manual Loads 0 Difficulty Rogue Special Mode Winter2019/RPGLIKE Game No. 86 Rogue 78 Adventurer 8 Explorer 0 Win Type - Total 6 Types 3/0/2/1/0/0/0/0/0 Lore% 63 Gallery% 79 Achievement% 64 Wizard Run 0 Options --------- Layout 0 ASCII 0 Keyboard 1 Movement Vi Keybinds 0 Fullscreen 2 Font 16/Tamsyn Map View 89x57 Zoom Use 0% Tactical HUD 1 Map Filters NONE Filters NONE Steam 1 RUN: af8741ba-9614-4fc0-843f-ce07f5895092